bitfinex/quotes_SOLUSD_20241103
["timestamp","ask_amount","ask_price","bid_price","bid_amount"]
[1730602028716,38.97434038,162.83,162.82,0.0790453]
[1730602028916,38.97434038,162.83,162.81,0.0790453]
[1730602029216,38.97434038,162.83,162.82,0.0790453]
[1730602029593,45.11594038,162.83,162.79,0.0790453]
[1730602029812,38.64221838,162.81,162.8,0.0790453]
[1730602030015,38.64221838,162.82,162.8,0.0790453]
[1730602030323,38.64221838,162.82,162.81,0.0790453]
[1730602030494,38.64221838,162.82,162.78,0.0790453]
[1730602030690,38.64221838,162.81,162.79,0.0790453]
[1730602031027,38.97434038,162.83,162.79,0.0790453]
[1730602031193,38.64221838,162.82,162.78,0.0790453]
[1730602031398,38.64221838,162.82,162.81,0.0790453]
[1730602032101,38.97434038,162.83,162.8,0.0790453]
[1730602032296,38.97434038,162.83,162.81,0.0790453]
[1730602032695,38.64221838,162.82,162.81,0.0790453]
[1730602033000,38.97434038,162.83,162.81,0.0790453]
[1730602033198,38.97434038,162.83,162.8,0.0790453]
[1730602033524,38.64221838,162.81,162.8,0.0790453]
[1730602033815,38.64221838,162.82,162.81,0.0790453]
[1730602034014,6.152,162.81,162.77,0.0790453]
[1730602034320,38.64221838,162.78,162.75,0.0790453]
[1730602034496,70.0,162.79,162.73,0.0790453]
[1730602034696,38.64221838,162.74,162.73,0.0790453]
[1730602035020,38.64221838,162.74,162.69,0.0790453]
[1730602035199,38.64221838,162.73,162.72,0.0790453]
[1730602035712,23.76041419,162.73,162.72,0.0790453]
[1730602036017,23.76041419,162.73,162.69,0.0790453]
[1730602036203,23.76041419,162.71,162.69,0.0790453]
[1730602036406,23.76041419,162.74,162.72,0.0790453]
[1730602036606,23.76041419,162.75,162.72,0.0790453]
[1730602036810,23.76041419,162.73,162.7,0.0790453]
[1730602037010,23.76041419,162.74,162.73,0.0790453]
[1730602037192,15.6847,162.76,162.74,0.0790453]
[1730602037397,39.44511419,162.76,162.74,0.0790453]
[1730602037709,15.6847,162.76,162.75,0.0790453]
[1730602038041,54.27977119,162.76,162.75,0.0790453]
[1730602038623,54.27977119,162.76,162.73,0.0790453]
[1730602038807,38.59507119,162.75,162.73,0.0790453]
[1730602039010,38.59507119,162.75,162.74,0.0790453]
[1730602040226,38.59507119,162.79,162.77,0.0790453]
[1730602040404,38.92719319,162.8,162.78,0.0790453]
[1730602040603,38.59507119,162.79,162.78,0.0790453]
[1730602040999,38.92719319,162.8,162.79,0.0790453]
[1730602041723,38.92719319,162.8,162.78,0.0790453]
[1730602041900,38.59507119,162.79,162.75,0.0790453]
[1730602042100,38.59507119,162.76,162.73,23.8559293]
[1730602042319,38.59507119,162.79,162.76,0.0790453]
[1730602042523,38.92719319,162.8,162.76,0.0790453]
[1730602042737,38.59507119,162.77,162.75,23.8559293]
[1730602043034,38.59507119,162.78,162.77,0.0790453]
[1730602043323,38.59507119,162.78,162.75,23.776884]
[1730602043324,38.59507119,162.78,162.76,0.0790453]
[1730602043504,0.332122,162.8,162.76,0.0790453]
[1730602043505,38.59507119,162.77,162.76,0.0790453]
[1730602043708,38.59507119,162.78,162.76,0.0790453]
[1730602043908,0.332122,162.8,162.79,0.0790453]
[1730602044218,0.332122,162.8,162.79,62.45100049]
[1730602045605,0.332122,162.8,162.79,68.59380049]
[1730602046227,38.92719319,162.8,162.79,0.0790453]
[1730602046529,38.92719319,162.8,162.76,0.0790453]
[1730602046698,38.59507119,162.77,162.73,0.0790453]
[1730602046902,38.59507119,162.76,162.74,0.0790453]
[1730602047126,38.59507119,162.75,162.74,0.0790453]
[1730602047627,38.59507119,162.75,162.73,0.0790453]
[1730602047925,38.59507119,162.74,162.73,0.0790453]
[1730602048323,16.153,162.78,162.75,0.0790453]
[1730602048630,38.59507119,162.76,162.75,0.0790453]
[1730602050323,54.74807119,162.78,162.77,0.0790453]
[1730602050516,6.935022,162.8,162.79,0.0790453]
[1730602050837,0.332122,162.8,162.79,0.0790453]
[1730602051522,38.92719319,162.8,162.79,0.0790453]
[1730602051921,38.92719319,162.8,162.78,0.0790453]
[1730602051922,45.06979319,162.8,162.78,0.0790453]
[1730602052135,38.59507119,162.79,162.78,0.0790453]
[1730602052712,45.06979319,162.8,162.78,0.0790453]
[1730602053339,0.332122,162.8,162.79,0.0790453]
[1730602053513,38.92719319,162.8,162.79,0.0790453]
[1730602053718,38.92719319,162.8,162.77,0.0790453]
[1730602053930,38.59507119,162.79,162.78,0.0790453]
[1730602054130,45.06979319,162.8,162.78,0.0790453]
[1730602054313,38.59507119,162.79,162.77,0.0790453]
[1730602054519,38.59507119,162.78,162.75,0.0790453]
[1730602054735,38.59507119,162.78,162.76,0.0790453]
[1730602054917,38.59507119,162.79,162.76,0.0790453]
[1730602055118,38.59507119,162.79,162.73,38.59507119]
[1730602055119,0.332122,162.8,162.79,0.0790453]
[1730602056345,0.332122,162.8,162.78,0.0790453]
[1730602056546,38.59507119,162.79,162.77,0.0790453]
[1730602056846,38.59507119,162.78,162.77,0.0790453]
[1730602057333,38.59507119,162.79,162.77,0.0790453]
[1730602057731,38.59507119,162.78,162.76,0.0790453]
[1730602058434,44.73857119,162.78,162.76,0.0790453]
[1730602058642,38.59507119,162.77,162.75,0.0790453]
[1730602058942,38.59507119,162.77,162.76,0.0790453]
[1730602059236,6.474922,162.8,162.78,0.0790453]
[1730602059237,0.332122,162.8,162.78,0.0790453]
[1730602059546,0.332122,162.8,162.79,0.0790453]
[1730602061320,24.06717467,162.8,162.79,0.0790453]
[1730602061520,24.06717467,162.8,162.78,23.8559293]
[1730602062040,24.06717467,162.8,162.79,0.0790453]
[1730602062217,0.332122,162.8,162.79,0.0790453]
[1730602063218,0.332122,162.8,162.79,67.59098197]
[1730602063423,0.332122,162.8,162.79,67.69098197]
[1730602064143,0.332122,162.8,162.79,67.59098197]
[1730602065330,0.332122,162.8,162.79,73.73378197]
[1730602066057,0.332122,162.8,162.79,75.06173537]
[1730602067053,0.332122,162.8,162.79,75.16173537]
[1730602067646,0.332122,162.8,162.79,73.73378197]
[1730602068934,0.332122,162.8,162.79,53.73378197]
[1730602071660,0.332122,162.8,162.79,47.59098197]
[1730602071840,0.332122,162.8,162.79,0.0790453]
[1730602072239,16.6349,162.79,162.77,0.0790453]
[1730602072462,23.73505267,162.78,162.77,0.0790453]
[1730602073462,23.73505267,162.78,162.76,0.0790453]
[1730602073638,23.73505267,162.77,162.76,0.0790453]
[1730602073843,23.73505267,162.77,162.75,0.0790453]
[1730602074159,23.73505267,162.76,162.75,0.0790453]
[1730602075864,40.36995267,162.79,162.76,0.0790453]
[1730602076067,23.73505267,162.78,162.77,0.0790453]
[1730602076384,16.6349,162.79,162.78,0.0790453]
[1730602077344,40.36995267,162.79,162.78,0.0790453]
[1730602077758,46.51305267,162.79,162.76,0.0790453]
[1730602077960,23.73505267,162.77,162.76,0.0790453]
[1730602078150,23.73505267,162.77,162.75,0.0790453]
[1730602078455,93.73505267,162.76,162.72,0.0790453]
[1730602078653,70.0,162.76,162.71,0.0790453]
[1730602078862,70.0,162.76,162.7,0.0790453]
[1730602079042,23.73505267,162.71,162.7,0.0790453]
[1730602079455,23.73505267,162.73,162.71,0.0790453]
[1730602079768,23.73505267,162.73,162.72,0.0790453]
[1730602080073,29.88015267,162.73,162.72,0.0790453]
[1730602080248,23.73505267,162.73,162.72,0.0790453]
[1730602080849,23.73505267,162.74,162.72,0.0790453]
[1730602081054,23.73505267,162.74,162.73,0.0790453]
[1730602082255,16.6349,162.79,162.78,0.0790453]
[1730602083163,0.332122,162.8,162.79,0.0790453]
[1730602086870,0.332122,162.8,162.78,0.0790453]
[1730602087058,0.332122,162.8,162.79,0.0790453]
[1730602087468,24.06717467,162.8,162.78,0.0790453]
[1730602087658,23.73505267,162.79,162.76,0.0790453]
[1730602087858,70.0,162.77,162.73,0.0790453]
[1730602088065,70.0,162.77,162.66,15.3687]
[1730602088066,70.0,162.75,162.69,0.0790453]
[1730602088370,20.0,162.72,162.64,0.0790453]
[1730602088674,23.73505267,162.67,162.65,0.0790453]
[1730602088876,23.73505267,162.66,162.64,0.0790453]
[1730602089175,23.73505267,162.66,162.55,5.74637713]
[1730602089176,23.73505267,162.65,162.63,0.0790453]
[1730602089375,23.73505267,162.64,162.57,0.0790453]
[1730602089579,23.73505267,162.59,162.56,0.0790453]
[1730602089764,38.6795861,162.59,162.56,0.0790453]
[1730602090078,38.6795861,162.57,162.55,0.0790453]
[1730602090279,70.0,162.6,162.56,0.0790453]
[1730602090456,20.0,162.63,162.58,0.0790453]
[1730602090851,6.1493,162.62,162.58,0.0790453]
[1730602091262,6.1493,162.62,162.56,0.0790453]
[1730602091263,38.6795861,162.59,162.56,0.0790453]
[1730602091462,6.1493,162.62,162.58,0.0790453]
[1730602091663,38.6795861,162.59,162.58,0.0790453]
[1730602092781,38.6795861,162.59,162.55,0.0790453]
[1730602092984,38.6795861,162.56,162.52,0.0790453]
[1730602093156,38.6795861,162.6,162.56,0.0790453]
[1730602093361,38.6795861,162.6,162.59,0.0790453]
[1730602093573,70.0,162.63,162.59,0.0790453]
[1730602093771,38.6795861,162.6,162.57,0.0790453]
[1730602093976,38.6795861,162.59,162.57,0.0790453]
[1730602094487,38.6795861,162.58,162.55,0.0790453]
[1730602094659,108.6795861,162.58,162.54,0.0790453]
[1730602094861,38.6795861,162.55,162.54,0.0790453]
[1730602095079,38.6795861,162.59,162.58,0.0790453]
[1730602095376,38.6795861,162.6,162.55,38.6795861]
[1730602095995,38.6795861,162.61,162.56,62.4564701]
[1730602096483,15.666,162.65,162.6,38.6795861]
[1730602096689,91.8359,162.71,162.64,38.6795861]
[1730602096975,38.6795861,162.73,162.67,38.6795861]
[1730602097181,38.6795861,162.73,162.68,23.776884]
[1730602097389,38.6795861,162.71,162.68,23.776884]
[1730602097560,38.6795861,162.71,162.65,38.6795861]
[1730602097756,38.6795861,162.69,162.65,23.776884]
[1730602098173,70.0,162.73,162.65,23.776884]
[1730602098174,38.6795861,162.7,162.65,29.924884]
[1730602098962,38.6795861,162.71,162.65,68.6044701]
[1730602099373,38.6795861,162.7,162.65,29.924884]
[1730602099577,108.6795861,162.73,162.67,62.4564701]
[1730602099775,70.0,162.67,162.59,38.6795861]
[1730602099957,38.6795861,162.64,162.58,38.6795861]
[1730602100163,38.6795861,162.64,162.59,38.6795861]
[1730602101382,38.6795861,162.65,162.6,29.926784]
[1730602101564,38.6795861,162.61,162.55,21.5309]
[1730602101883,38.6795861,162.58,162.55,15.379]
[1730602102082,38.6795861,162.59,162.55,21.5309]
[1730602102281,38.6795861,162.61,162.55,60.2104861]
[1730602102481,38.6795861,162.6,162.55,21.5309]
[1730602102780,38.6795861,162.61,162.55,60.2104861]
[1730602102984,38.6795861,162.6,162.55,21.5309]
[1730602103163,38.6795861,162.6,162.56,23.776884]
[1730602103358,76.149,162.63,162.55,15.379]
[1730602103359,38.6795861,162.57,162.55,15.379]
[1730602103563,38.6795861,162.57,162.53,6.1523]
[1730602104394,70.0,162.59,162.51,15.3828]
[1730602104565,38.6795861,162.53,162.5,0.2900765]
[1730602104765,38.6795861,162.52,162.5,0.2900765]
[1730602105386,38.6795861,162.51,162.5,0.2900765]
[1730602105800,108.6795861,162.51,162.5,0.2900765]
[1730602106083,128.6795861,162.51,162.5,0.2900765]
[1730602106988,70.0,162.49,162.43,15.3911]
[1730602107187,38.6795861,162.46,162.43,21.5475]
[1730602107774,38.6795861,162.45,162.43,21.5475]
[1730602108077,38.6795861,162.46,162.43,21.5475]
[1730602110074,38.6795861,162.45,162.43,21.5475]
[1730602110969,55.0324861,162.53,162.44,62.4564701]
[1730602111186,55.0324861,162.53,162.48,38.6795861]
[1730602111388,55.0324861,162.53,162.47,38.6795861]
[1730602111580,38.6795861,162.52,162.48,23.776884]
[1730602111884,38.6795861,162.52,162.47,23.776884]
[1730602113185,38.6795861,162.52,162.48,21.5411]
[1730602114670,55.0324861,162.53,162.48,21.5411]
[1730602115385,38.6795861,162.49,162.47,23.776884]
[1730602115572,38.6795861,162.48,162.42,0.2967577]
[1730602115773,0.2,162.52,162.42,0.2967577]
[1730602115774,38.6795861,162.43,162.42,0.2967577]
[1730602117877,38.6795861,162.45,162.42,6.4535577]
[1730602118702,38.6795861,162.44,162.42,6.4535577]
[1730602119373,38.6795861,162.43,162.42,0.2967577]
[1730602119898,38.6795861,162.44,162.42,0.2967577]
[1730602120090,45.2519861,162.45,162.42,0.2967577]
[1730602120480,38.6795861,162.45,162.42,0.2967577]
[1730602120683,38.6795861,162.44,162.42,0.2967577]
[1730602120897,38.6795861,162.45,162.42,0.2967577]
[1730602121078,38.6795861,162.44,162.42,0.2967577]
[1730602121280,38.6795861,162.43,162.42,0.2967577]
[1730602122402,38.6795861,162.45,162.42,0.2967577]
[1730602122691,38.6795861,162.43,162.42,0.2967577]
[1730602122893,38.6795861,162.44,162.42,0.2967577]
[1730602123207,38.6795861,162.43,162.42,0.2967577]
[1730602123798,23.84953552,162.43,162.42,0.2967577]
[1730602125199,23.84953552,162.44,162.42,0.2967577]
[1730602125885,23.84953552,162.43,162.42,0.2967577]
[1730602130101,23.84953552,162.44,162.42,0.2967577]
[1730602130505,23.84953552,162.43,162.42,0.2967577]
[1730602133281,60.24923552,162.43,162.42,0.2967577]
[1730602133487,66.30563552,162.43,162.42,0.2967577]
[1730602135993,66.40563552,162.43,162.42,0.2967577]
[1730602136192,70.0,162.4,162.34,15.6961577]
[1730602136388,23.84953552,162.35,162.34,15.6961577]
[1730602136788,23.84953552,162.38,162.34,21.8560577]
[1730602136985,23.84953552,162.35,162.34,0.2967577]
[1730602138609,23.84953552,162.36,162.34,0.2967577]
[1730602139920,23.84953552,162.38,162.34,21.8562577]
[1730602140293,6.5289,162.4,162.34,21.8562577]
[1730602140294,23.84953552,162.35,162.34,15.6964577]
[1730602140495,23.84953552,162.36,162.34,15.6964577]
[1730602140694,23.84953552,162.37,162.34,21.8563577]
[1730602141118,23.84953552,162.35,162.34,0.2967577]
[1730602142408,100.00903552,162.35,162.34,0.2967577]
[1730602142912,70.0,162.31,162.29,0.92387969]
[1730602143148,23.84953552,162.3,162.29,0.92387969]
[1730602144303,70.0,162.29,162.23,15.4093]
[1730602144505,23.84953552,162.27,162.24,6.1636]
[1730602144822,23.84953552,162.27,162.23,21.573]
[1730602145307,23.84953552,162.27,162.25,6.1631]
[1730602145490,23.84953552,162.27,162.23,15.4093]
[1730602145813,23.84953552,162.27,162.23,21.573]
[1730602146009,117.69907104,162.27,162.2,21.5776]
[1730602146217,117.69907104,162.27,162.22,6.1643]
[1730602146514,93.84953552,162.27,162.22,6.1643]
[1730602146695,16.3351,162.35,162.26,6.4596577]
[1730602146898,23.84953552,162.34,162.29,23.84953552]
[1730602147115,23.84953552,162.34,162.28,23.84953552]
[1730602147499,23.84953552,162.31,162.26,45.71649322]
[1730602147815,23.84953552,162.29,162.26,21.8669577]
[1730602148389,23.84953552,162.27,162.26,0.2967577]
[1730602150291,30.01203552,162.27,162.26,0.2967577]
[1730602150498,23.84953552,162.27,162.26,0.2967577]
[1730602150818,70.0,162.26,162.22,21.3722577]
[1730602151022,93.84953552,162.26,162.22,21.3722577]
[1730602151511,23.84953552,162.25,162.22,15.2078577]
[1730602151718,93.84953552,162.26,162.2,23.84953552]
[1730602152294,23.84953552,162.26,162.21,21.5769]
[1730602152498,93.84953552,162.26,162.21,21.5769]
[1730602153316,6.5633,162.27,162.22,23.84953552]
[1730602153317,23.84953552,162.27,162.22,23.84953552]
[1730602153494,6.5633,162.31,162.22,23.84953552]
[1730602153495,100.41283552,162.31,162.26,23.84953552]
[1730602153810,6.5633,162.31,162.26,23.84953552]
[1730602154007,100.41283552,162.31,162.26,23.84953552]
[1730602154206,23.84953552,162.34,162.28,23.84953552]
[1730602154410,116.74793552,162.35,162.29,23.84953552]
[1730602154715,76.5633,162.39,162.34,23.84953552]
[1730602154920,23.84953552,162.38,162.33,23.84953552]
[1730602155104,23.84953552,162.38,162.32,23.84953552]
[1730602155429,23.84953552,162.37,162.33,21.5609]
[1730602155721,16.3351,162.41,162.36,23.84953552]
[1730602155896,23.84953552,162.43,162.38,23.84953552]
[1730602156098,94.14629322,162.46,162.4,23.84953552]
[1730602156311,0.2967577,162.46,162.39,0.1]
[1730602156511,0.2967577,162.46,162.37,23.876884]
[1730602157122,0.2967577,162.46,162.37,23.776884]
[1730602157418,70.0,162.45,162.38,21.5542]
[1730602157619,23.84953552,162.39,162.34,45.40813552]
[1730602157914,23.84953552,162.39,162.34,21.5586]
[1730602158107,23.84953552,162.39,162.34,45.40813552]
[1730602158499,93.84953552,162.4,162.34,45.40813552]
[1730602158905,23.84953552,162.39,162.34,45.40813552]
[1730602159119,93.84953552,162.4,162.35,23.84953552]
[1730602159303,93.84953552,162.4,162.34,45.40813552]
[1730602160215,93.84953552,162.4,162.35,23.84953552]
[1730602160517,45.54853552,162.43,162.38,23.84953552]
[1730602160709,23.84953552,162.44,162.38,23.84953552]
[1730602160912,23.84953552,162.45,162.39,23.84953552]
[1730602161114,70.0,162.44,162.39,23.84953552]
[1730602161839,23.84953552,162.45,162.39,23.84953552]
[1730602162121,23.84953552,162.44,162.4,6.1576]
[1730602162297,23.84953552,162.44,162.34,23.776884]
[1730602162298,23.84953552,162.42,162.38,6.1583]
[1730602162501,23.84953552,162.41,162.38,6.1583]
[1730602162703,70.0,162.4,162.36,21.5562]
[1730602162939,70.0,162.4,162.3,30.8071]
[1730602162940,23.84953552,162.38,162.32,23.84953552]
[1730602163220,23.84953552,162.38,162.33,39.25023552]
[1730602163797,23.84953552,162.37,162.33,15.4007]
[1730602164013,23.84953552,162.38,162.33,15.4007]
[1730602164209,93.84953552,162.4,162.35,23.84953552]
[1730602164426,93.84953552,162.4,162.33,15.4007]
[1730602164427,23.84953552,162.42,162.36,23.84953552]
[1730602164614,23.84953552,162.43,162.37,23.84953552]
[1730602164819,93.84953552,162.43,162.37,23.84953552]
[1730602165201,23.84953552,162.43,162.38,23.84953552]
[1730602165408,93.84953552,162.44,162.38,23.84953552]
[1730602166131,23.84953552,162.44,162.39,21.553]
[1730602166430,23.84953552,162.43,162.39,21.553]
[1730602166615,23.84953552,162.4,162.37,6.1584]
[1730602167011,23.84953552,162.39,162.36,15.3977]
[1730602167424,23.84953552,162.38,162.36,15.3977]
[1730602167610,23.84953552,162.37,162.33,6.16]
[1730602167811,23.84953552,162.36,162.33,21.5607]
[1730602168011,23.84953552,162.36,162.32,30.8033]
[1730602168408,23.84953552,162.36,162.3,45.41443552]
[1730602168611,23.84953552,162.32,162.3,21.5649]
[1730602168826,23.84953552,162.34,162.3,21.5649]
[1730602169329,23.84953552,162.36,162.3,45.41443552]
[1730602169513,23.84953552,162.35,162.3,21.5649]
[1730602169827,70.0,162.37,162.3,21.5649]
[1730602169828,23.84953552,162.34,162.3,21.5649]
[1730602170008,23.84953552,162.35,162.3,21.5649]
[1730602170608,23.84953552,162.34,162.3,21.5649]
[1730602171007,23.84953552,162.35,162.3,21.5649]
[1730602171629,70.0,162.34,162.3,21.5649]
[1730602171826,23.84953552,162.33,162.3,21.5649]
[1730602172029,23.84953552,162.33,162.28,6.162]
[1730602172227,23.84953552,162.32,162.28,6.162]
[1730602172737,23.84953552,162.37,162.31,23.84953552]
[1730602173026,93.84953552,162.37,162.31,23.84953552]
[1730602173211,23.84953552,162.36,162.3,23.84953552]
[1730602173834,23.84953552,162.36,162.31,21.5636]
[1730602174424,93.84953552,162.37,162.31,45.41313552]
[1730602175927,23.84953552,162.34,162.29,6.1616]
[1730602176234,93.84953552,162.35,162.29,30.01113552]
[1730602176418,23.84953552,162.34,162.29,15.4045]
[1730602176618,23.84953552,162.34,162.29,39.25403552]
[1730602176819,70.0,162.35,162.29,39.25403552]
[1730602176820,93.84953552,162.35,162.29,39.25403552]
[1730602177431,23.84953552,162.35,162.29,45.41583552]
[1730602178019,93.84953552,162.35,162.29,45.41583552]
[1730602178834,23.84953552,162.34,162.29,15.4045]
[1730602179012,23.84953552,162.32,162.26,23.84953552]
[1730602179218,23.84953552,162.31,162.26,21.5701]
[1730602179429,23.84953552,162.32,162.26,45.41963552]
[1730602180231,93.84953552,162.33,162.27,23.84953552]
[1730602180429,93.84953552,162.33,162.28,23.84953552]
[1730602180622,70.0,162.33,162.29,23.84953552]
[1730602180814,70.0,162.33,162.28,23.84953552]
[1730602181215,23.84953552,162.32,162.27,23.84953552]
[1730602181724,93.84953552,162.33,162.27,23.84953552]
[1730602182429,93.84953552,162.33,162.28,21.5675]
[1730602182640,91.699,162.35,162.31,23.84953552]
[1730602183108,91.699,162.35,162.3,23.84953552]
[1730602183529,91.699,162.35,162.29,23.84953552]
[1730602183732,115.54853552,162.35,162.29,23.84953552]
[1730602184438,115.54853552,162.35,162.3,21.5649]
[1730602184439,23.84953552,162.34,162.3,21.5649]
[1730602184809,115.54853552,162.35,162.3,21.5649]
[1730602187736,70.0,162.37,162.3,52.372]
[1730602187942,70.0,162.37,162.33,23.84953552]
[1730602188129,70.0,162.37,162.31,23.776884]
[1730602188438,70.0,162.37,162.34,23.84953552]
[1730602188634,21.5802,162.4,162.35,23.84953552]
[1730602188856,70.0,162.43,162.33,0.1]
[1730602189025,21.5802,162.45,162.41,23.84953552]
[1730602189339,21.5802,162.45,162.4,23.84953552]
[1730602189738,21.5802,162.45,162.41,6.1572]
[1730602190127,21.5802,162.45,162.41,30.00673552]
[1730602190840,70.2967577,162.46,162.41,30.00673552]
[1730602190841,0.2967577,162.46,162.44,23.84953552]
[1730602191143,0.2967577,162.46,162.45,23.84953552]
[1730602191332,0.2967577,162.46,162.45,47.62641952]
[1730602191942,0.2967577,162.46,162.45,30.00523552]
[1730602192134,0.2967577,162.46,162.44,21.546]
[1730602192738,0.2967577,162.46,162.37,0.1]
[1730602192946,24.14629322,162.46,162.41,23.84953552]
[1730602193319,23.84953552,162.44,162.41,15.3931]
[1730602193530,0.2967577,162.46,162.41,15.3931]
[1730602193531,23.84953552,162.45,162.41,15.3931]
[1730602194248,23.84953552,162.45,162.37,21.5547]
[1730602194249,23.84953552,162.42,162.37,21.5547]
[1730602194544,23.84953552,162.45,162.37,21.5547]
[1730602194841,23.84953552,162.45,162.39,23.84953552]
[1730602195032,70.0,162.44,162.39,23.84953552]
[1730602195224,93.84953552,162.44,162.39,23.84953552]
[1730602195418,23.84953552,162.42,162.36,23.84953552]
[1730602195619,23.84953552,162.43,162.38,23.84953552]
[1730602195923,24.14629322,162.46,162.4,23.84953552]
[1730602196142,0.2967577,162.46,162.41,23.84953552]
[1730602196448,0.2967577,162.46,162.42,23.84953552]
[1730602197037,0.2967577,162.46,162.41,23.84953552]
[1730602197238,0.2967577,162.46,162.4,23.776884]
[1730602197239,23.84953552,162.45,162.4,23.776884]
[1730602197442,0.2967577,162.46,162.42,23.84953552]
[1730602198150,0.2967577,162.46,162.43,47.62641952]
[1730602198446,0.2967577,162.46,162.45,23.84953552]
[1730602198742,0.2967577,162.46,162.44,23.84953552]
[1730602199049,0.2967577,162.46,162.43,23.84953552]
[1730602199251,0.2967577,162.46,162.41,45.39983552]
[1730602199544,24.14629322,162.46,162.41,21.5503]
[1730602200048,23.84953552,162.43,162.41,15.3931]
[1730602200419,23.84953552,162.43,162.41,21.5503]
[1730602200841,23.84953552,162.44,162.41,21.5503]
[1730602201151,23.84953552,162.45,162.41,21.5503]
[1730602201351,0.2967577,162.46,162.41,39.24263552]
[1730602201527,23.84953552,162.44,162.41,15.3931]
[1730602201941,23.84953552,162.42,162.38,15.3958]
[1730602202129,21.5802,162.43,162.38,21.5541]
[1730602202345,21.5802,162.43,162.38,45.40363552]
[1730602203357,45.42973552,162.43,162.38,21.5541]
[1730602203645,23.84953552,162.42,162.38,21.5541]
[1730602204534,23.84953552,162.42,162.38,15.3958]
[1730602204746,23.84953552,162.39,162.34,15.3988]
[1730602204935,93.84953552,162.41,162.35,23.84953552]
[1730602205648,23.84953552,162.41,162.35,23.84953552]
[1730602205822,115.42973552,162.43,162.38,23.84953552]
[1730602206029,115.42973552,162.43,162.37,23.84953552]
[1730602206750,23.84953552,162.39,162.36,21.5569]
[1730602206962,23.84953552,162.38,162.33,39.25023552]
[1730602207260,23.84953552,162.35,162.31,6.161]
[1730602208147,23.84953552,162.37,162.32,23.84953552]
[1730602208456,93.84953552,162.4,162.34,23.84953552]
[1730602208758,23.84953552,162.39,162.35,6.1595]
[1730602209632,23.84953552,162.36,162.31,6.1609]
[1730602209848,23.84953552,162.32,162.29,21.5652]
[1730602210045,23.84953552,162.3,162.25,23.84953552]
[1730602210242,23.84953552,162.3,162.25,39.25753552]
[1730602210540,23.84953552,162.31,162.25,45.42083552]
[1730602210745,22.4815,162.33,162.25,21.5713]
[1730602210948,46.33103552,162.33,162.27,23.84953552]
[1730602211745,23.84953552,162.32,162.27,23.84953552]
[1730602211947,23.84953552,162.3,162.25,45.42083552]
[1730602212341,116.33103552,162.33,162.28,23.84953552]
[1730602212554,110.17783552,162.33,162.27,23.84953552]
[1730602212754,40.17783552,162.33,162.28,21.5675]
[1730602212960,76.1532,162.36,162.3,23.84953552]
[1730602212961,23.84953552,162.35,162.3,23.84953552]
[1730602213147,23.84953552,162.33,162.28,45.41703552]
[1730602213349,70.0,162.32,162.22,21.5755]
[1730602213556,23.84953552,162.3,162.22,21.5755]
[1730602213756,23.84953552,162.26,162.22,15.4111]
[1730602213963,23.84953552,162.25,162.22,15.4111]
[1730602214165,40.17783552,162.28,162.23,23.84953552]
[1730602214365,40.17783552,162.28,162.22,21.5755]
[1730602214366,23.84953552,162.27,162.22,45.42503552]
[1730602214659,23.84953552,162.25,162.2,23.84953552]
[1730602214866,23.84953552,162.26,162.21,23.84953552]
[1730602215667,100.01223552,162.27,162.21,23.84953552]
[1730602215842,100.01223552,162.27,162.22,6.1644]
[1730602216667,100.01223552,162.27,162.22,23.84953552]
[1730602216846,93.84953552,162.27,162.22,23.84953552]
[1730602217170,23.84953552,162.26,162.21,23.84953552]
[1730602217545,23.84953552,162.26,162.2,47.62641952]
[1730602217743,23.84953552,162.26,162.2,23.84953552]
[1730602218566,23.84953552,162.26,162.19,15.414]
[1730602218567,70.0,162.24,162.19,15.414]
[1730602218755,23.84953552,162.2,162.18,0.2967577]
[1730602218954,23.84953552,162.19,162.18,0.2967577]
[1730602219251,23.84953552,162.24,162.18,30.31219322]
[1730602219450,23.84953552,162.24,162.19,23.84953552]
[1730602219667,23.84953552,162.24,162.18,45.72709322]
[1730602219971,16.3283,162.28,162.23,23.84953552]
[1730602220148,16.3283,162.28,162.24,23.84953552]
[1730602220549,86.3283,162.28,162.24,6.1637]
[1730602220754,92.4905,162.28,162.21,23.84953552]
[1730602220962,23.84953552,162.24,162.2,15.4129]
[1730602221275,93.84953552,162.26,162.21,23.84953552]
[1730602221949,93.84953552,162.26,162.2,45.42763552]
[1730602222268,23.84953552,162.25,162.2,45.42763552]
[1730602222951,93.84953552,162.26,162.2,45.42763552]
[1730602223370,100.01253552,162.26,162.2,45.42763552]
[1730602223571,93.84953552,162.26,162.21,23.84953552]
[1730602223776,93.84953552,162.24,162.2,15.4129]
[1730602224069,23.84953552,162.21,162.18,0.2967577]
[1730602224449,23.84953552,162.2,162.18,0.2967577]
[1730602224649,93.84953552,162.2,162.18,0.2967577]